[Event "Czech Open-GM 2022"]
[Site "Pardubice"]
[Date "2022.07.24"]
[Round "3.18"]
[White "Akesson, Ralf"]
[Black "Hrbek, Stepan"]
[Result "1-0"]
[ECO "E15"]
[WhiteElo "2427"]
[BlackElo "2272"]
[Annotator "TA"]
[PlyCount "77"]
[EventDate "2022.07.22"]
[EventType "swiss"]
[EventCountry "CZE"]
[SourceTitle "playchess.com"]
[Source "ChessBase"]
[SourceQuality "1"]
[TimeControl "40/5400+30:1800+30"]

{[%evp 11,77,11,9,3,4,6,7,-8,-8,-21,-24,-19,0,0,4,-34,0,0,9,0,31,27,31,0,0,0,26,41,43,44,52,50,48,35,81,58,94,107,152,112,128,90,126,81,89,87,355,350,337,323,293,297,306,295,277,243,335,221,452,430,458,445,606,610,580,554,621,545]} 1. d4 {[%emt 0:00:06]} Nf6 {[%emt 0:00:09]} 2. Nf3 {[%emt 0:00:22]} e6 {[%emt 0:00:31]} 3. c4 {[%emt 0:00:14]} b6 {[%emt 0:00:24]} 4. g3 {[%emt 0:00:29]} Ba6 {[%emt 0:00:07]} 5. Nbd2 {[%emt 0:02:01]} d5 {[%emt 0:00:49]} 6. cxd5 {[%emt 0:01:05]} exd5 {[%emt 0:00:10]} 7. Bg2 {[%emt 0:00:09] E15: Queen's Indian: 4 g3 sidelines, 4 g3 Ba6 and 4 g3 Bb7 early deviations.} Bd6 {[%emt 0:04:31]} 8. O-O {[%emt 0:03:49]} O-O {[%emt 0:01:13]} 9. b3 {[%emt 0:02:54] The position is equal.} Nbd7 {[%emt 0:01:33]} 10. Bb2 {[%emt 0:00:13]} Qe7 {[%emt 0:03:40]} 11. Re1 {[%emt 0:00:16]} Bb7 {[%emt 0:00:09] [#]} 12. Qc2 $146 {[%emt 0:11:44]} ({Predecessor:} 12. Rc1 Ne4 13. Nxe4 dxe4 14. Nd2 b5 15. e3 Nb6 16. Nb1 Nd5 17. Nc3 Nxc3 18. Bxc3 {1-0 (82) Piket,J (2625)-Christiansen,L (2625) Groningen 1992}) 12... a5 {[%emt 0:14:21]} 13. a3 {[%emt 0:05:48]} Rfe8 {[%emt 0:03:04]} 14. Nh4 {[%emt 0:05:35]} g6 {[%emt 0:06:42] Inhibits Nf5.} 15. Nc4 {[%emt 0:01:20]} Ba6 {[%emt 0:00:17]} 16. Nxd6 {[%emt 0:01:03]} cxd6 {[%emt 0:00:07]} 17. Qd2 {[%emt 0:09:51]} Rac8 {[%emt 0:03:40]} 18. Rac1 {[%emt 0:02:44]} Rxc1 {[%emt 0:03:40]} 19. Bxc1 {[%emt 0:03:54]} Ne4 {[%emt 0:04:00]} 20. Qb2 {[%emt 0:15:47]} f5 {[%emt 0:04:31]} 21. f3 {[%emt 0:03:16]} Nef6 {[%emt 0:04:23]} 22. Bg5 {[%emt 0:00:39]} Qf8 {[%emt 0:06:32]} (22... Nf8 $14 {was preferrable.}) 23. Qd2 {[%emt 0:01:13]} Rc8 {[%emt 0:05:27]} 24. Bf1 {[%emt 0:01:45]} Kf7 {[%emt 0:02:59]} 25. h3 {[%emt 0:04:10][%cal Bh2h3,Bh3g4,Bg4g5][%mdl 32]} Qd8 {[%emt 0:05:05]} 26. Ng2 {[%emt 0:03:05]} Qc7 {[%emt 0:02:20]} 27. g4 {[%emt 0:01:57]} (27. Qe3 Qc3) 27... fxg4 {[%emt 0:00:20]} 28. hxg4 {[%emt 0:00:15]} Qc3 $2 {[%emt 0:00:42][%mdl 8192] This move loses the game for Black.} (28... Nf8 $16) 29. Qf4 $18 {[%emt 0:00:59] [#] Bxf6 is the strong threat.} Kg7 {[%emt 0:01:28]} 30. Qxd6 {[%emt 0:01:55]} Kf7 {[%emt 0:02:36] Against Qe7+} 31. Bxf6 {[%emt 0:05:39]} ({Weaker is} 31. e3 Rc6 32. Qf4 Bxf1 33. Rxf1 Kg8 $16) 31... Nxf6 {[%emt 0:00:17]} 32. g5 {[%emt 0:00:08]} ({Don't do} 32. Qxb6 Rc6 33. Qa7+ Kf8) 32... Nh5 {[%emt 0:01:28]} 33. Qxd5+ {[%emt 0:00:14]} Kg7 {[%emt 0:00:22]} 34. Qe5+ {[%emt 0:04:04]} Kg8 $2 {[%emt 0:00:59] [#]} (34... Kf7 {was worth a try.} 35. Qd5+ (35. e4 Bxf1 36. Qd5+ Ke7 $16) 35... Ke7) 35. Qe6+ {[%emt 0:01:51] White is clearly winning.} Kf8 {[%emt 0:00:44]} 36. Qxb6 {[%emt 0:00:53]} Rc6 {[%emt 0:00:26]} 37. Qd8+ {[%emt 0:00:25]} Kf7 38. Qd7+ {[%emt 0:02:34]} Kg8 {[%emt 0:00:37]} 39. d5 {[%emt 0:02:16] Weighted Error Value: White=0.13 (very precise) /Black=0.37} 1-0

[Event "Czech Open-GM 2022"]
[Site "Pardubice"]
[Date "2022.07.24"]
[Round "3.19"]
[White "Muetsch, Annmarie"]
[Black "Dobrowolski, Piotr"]
[Result "1/2-1/2"]
[ECO "C26"]
[WhiteElo "2249"]
[BlackElo "2423"]
[Annotator "TA"]
[PlyCount "105"]
[EventDate "2022.07.22"]
[EventType "swiss"]
[EventCountry "CZE"]
[SourceTitle "playchess.com"]
[Source "ChessBase"]
[SourceQuality "1"]
[TimeControl "40/5400+30:1800+30"]

{[%evp 9,105,-9,27,24,38,2,48,44,55,47,82,0,-7,-16,15,-104,-100,-109,-100,-143,-137,-137,-148,-168,-82,-116,-81,-93,-20,-19,0,0,0,-8,-3,-9,0,-25,-6,-13,0,-31,-26,-41,-39,-37,-37,-37,-37,-41,-40,-46,-38,-49,-49,-45,-53,-48,46,46,46,48,46,21,21,21,85,85,85,85,85,85,81,49,49,49,49,49,47,37,81,81,81,81,81,81,81,81,81,81,81,81,81,80,80,80,80,49]} 1. e4 {[%emt 0:00:03]} e5 {[%emt 0:00:23]} 2. Nc3 {[%emt 0:01:24]} Nf6 {[%emt 0:00:13]} 3. d4 {[%emt 0:00:28]} exd4 {[%emt 0:00:16]} 4. Qxd4 {[%emt 0:00:06]} Nc6 {[%emt 0:00:15]} 5. Qc4 {[%emt 0:00:21]} d6 {[%emt 0:01:34]} 6. Be3 {[%emt 0:05:14] C26: Vienna Game: 2...Nf6, sidelines .} Be7 {[%emt 0:05:34]} 7. f3 {[%emt 0:06:01] Prevents Ng4.} O-O {[%emt 0:09:24]} (7... Ne5 $11 8. Qe2 O-O) 8. O-O-O $14 {[%emt 0:01:30] [#] White is slightly better.} Re8 $146 {[%emt 0:03:35]} ({Predecessor:} 8... Be6 9. Qe2 Nd7 10. f4 Nb6 11. Nf3 f5 12. exf5 Bxf5 13. Rg1 Bf6 14. g4 Bg6 {½-½ (93) Charochkina,D (2340)-Ghukasyan,S (2194) Iasi 2021}) 9. Kb1 {[%emt 0:02:37]} a5 {[%emt 0:12:42][%cal Oa5a4]} 10. Nh3 {[%emt 0:06:20] White is more active.} (10. Qe2 $16) 10... Ne5 {[%emt 0:14:01]} 11. Qe2 {[%emt 0:02:01]} c6 {[%emt 0:00:07]} 12. Na4 {[%emt 0:10:01]} (12. a4 $11) 12... Bxh3 $17 {[%emt 0:17:06]} 13. gxh3 {[%emt 0:03:34] [#]} b5 $1 {[%emt 0:00:11]} 14. Nc5 {[%emt 0:06:02]} Nc4 {[%emt 0:01:34]} 15. Bc1 {[%emt 0:06:27]} Bf8 {[%emt 0:02:11]} 16. Bg2 {[%emt 0:03:46]} Qb6 {[%emt 0:03:37]} (16... d5 $19 17. Nd3 Bd6) 17. Nd3 {[%emt 0:00:15]} a4 {[%emt 0:00:08] And now ...a3 would win.} 18. Qf2 {[%emt 0:03:46]} Qxf2 {[%emt 0:07:00]} (18... Qb7 $17) 19. Nxf2 $11 {[%emt 0:00:06]} d5 {[%emt 0:00:15]} 20. Ng4 {[%emt 0:03:11]} Nxg4 {[%emt 0:00:33]} 21. hxg4 {[%emt 0:00:11]} dxe4 {[%emt 0:00:13]} 22. fxe4 {[%emt 0:00:07]} Ne5 {[%emt 0:01:39]} 23. h3 {[%emt 0:05:35]} a3 {[%emt 0:04:19]} 24. b3 {[%emt 0:02:17]} Bb4 {[%emt 0:01:23]} 25. Bf4 {[%emt 0:03:28]} f6 {[%emt 0:03:23]} 26. Bxe5 {[%emt 0:01:53]} fxe5 {[%emt 0:00:57]} 27. Rd3 {[%emt 0:11:52]} Rf8 {[%emt 0:02:18]} 28. Bf3 {[%emt 0:01:01]} Rf4 {[%emt 0:02:48]} 29. c3 {[%emt 0:01:47]} Be7 {[%emt 0:02:00]} 30. b4 {[%emt 0:02:54]} Raf8 {[%emt 0:00:17]} 31. Bd1 {[%emt 0:00:08]} Rxe4 {[%emt 0:00:56]} 32. Bf3 {[%emt 0:00:58]} Rc4 {[%emt 0:01:11] [#] Threatens to win with ...e4.} 33. Re1 {[%emt 0:01:31] Against e4} Rd8 {[%emt 0:00:15]} (33... e4 $1 $15 34. Bxe4 Bh4) 34. Rxd8+ $14 {[%emt 0:00:45]} Bxd8 {[%emt 0:00:01][%mdl 4096] Endgame KRB-KRB} 35. Kc2 {[%emt 0:01:13]} Kf8 {[%emt 0:04:51]} 36. Re4 {[%emt 0:01:31]} Ke7 {[%emt 0:00:34]} 37. Kb3 {[%emt 0:04:30]} Kd6 {[%emt 0:00:40]} (37... Rxe4 $11 38. Bxe4 Kd6) 38. Rxc4 $16 {[%emt 0:00:30]} bxc4+ {[%emt 0:00:01]} 39. Kxc4 {[%emt 0:03:15] KB-KB} Bg5 {[%emt 0:00:27]} 40. Kb3 {[%emt 0:00:46]} Bc1 {[%emt 0:00:38]} 41. Be4 {[%emt 0:07:17]} h6 {[%emt 0:00:00]} 42. Kc4 {[%emt 0:00:42]} Bd2 {[%emt 0:00:00]} 43. Kd3 {[%emt 0:00:28]} Bc1 {[%emt 0:00:07]} 44. Bf5 {[%emt 0:02:18]} e4+ {[%emt 0:00:16]} 45. Bxe4 {[%emt 0:00:42] White is better.} Bb2 {[%emt 0:00:08]} 46. Kc4 {[%emt 0:03:35]} Bc1 {[%emt 0:00:07]} 47. Kb3 {[%emt 0:01:21]} Bb2 {[%emt 0:00:18]} 48. c4 {[%emt 0:01:44][%cal Bc3c4,Bc4c5,Bc5c6][%mdl 32]} Bc1 {[%emt 0:00:14]} 49. Ka4 {[%emt 0:01:09]} Kc7 {[%emt 0:00:23]} 50. c5 {[%emt 0:01:13]} Bb2 {[%emt 0:00:12]} 51. b5 {[%emt 0:00:12]} cxb5+ {[%emt 0:00:03]} 52. Kxb5 {[%emt 0:00:05]} Bc1 {[%emt 0:00:08]} 53. c6 {Weighted Error Value: White=0.12 (very precise) /Black=0.15 (very precise)} 1/2-1/2

[Event "Czech Open-GM 2022"]
[Site "Pardubice"]
[Date "2022.07.24"]
[Round "3.20"]
[White "Luberanski, Jakub"]
[Black "Lalic, Bogdan"]
[Result "1/2-1/2"]
[ECO "E00"]
[WhiteElo "2241"]
[BlackElo "2412"]
[Annotator "TA"]
[PlyCount "30"]
[EventDate "2022.07.22"]
[EventType "swiss"]
[EventCountry "CZE"]
[SourceTitle "playchess.com"]
[Source "ChessBase"]
[SourceQuality "1"]
[TimeControl "40/5400+30:1800+30"]

{[%evp 14,30,41,22,22,31,33,32,22,27,27,23,31,31,52,19,36,8,20]} 1. d4 {[%emt 0:00:20]} e6 {[%emt 0:02:17]} 2. c4 {[%emt 0:00:59]} Bb4+ {[%emt 0:00:20]} 3. Bd2 {[%emt 0:00:27][%cal Bc1d2,Bd2e3,Be3d4][%mdl 32]} a5 {[%emt 0:00:09]} 4. Nf3 {[%emt 0:00:13]} Nf6 {[%emt 0:00:25]} 5. g3 {[%emt 0:01:04]} d6 {[%emt 0:00:36]} 6. Bg2 {[%emt 0:00:07]} Nbd7 {[%emt 0:00:13]} 7. O-O {[%emt 0:00:08]} e5 {[%emt 0:00:17]} 8. Be3 {[%emt 0:07:19]} exd4 {[%emt 0:00:22] E11: Bogo-Indian.} 9. Bxd4 {[%emt 0:00:06]} O-O {[%emt 0:00:42]} 10. a3 {[%emt 0:02:57] has lost popularity (10.Nc3).} Bc5 {[%emt 0:00:09] White is slightly better.} 11. Nc3 {[%emt 0:02:26]} Re8 {[%emt 0:01:01]} 12. Qc2 {[%emt 0:03:48]} Bxd4 {[%emt 0:05:51]} 13. Nxd4 {[%emt 0:01:00]} Nb6 {[%emt 0:00:12] [#]} 14. Nd5 $146 {[%emt 0:01:47]} ({Predecessor:} 14. Rfd1 Nfd7 15. Ne4 Qe7 16. Nb5 Nc5 17. Nxc5 dxc5 18. Qe4 Be6 19. Qf4 c6 20. Nc7 {0-1 (40) Belous,M (2329)-Gasanov,E (2482) Omelnyk 2017}) 14... c6 $1 {[%emt 0:00:32]} 15. Nxf6+ {[%emt 0:05:32]} Qxf6 {[%emt 0:00:10] Weighted Error Value: White=0.08 (flawless) /Black=0.04 (flawless)} 1/2-1/2

[Event "Czech Open-GM 2022"]
[Site "Pardubice"]
[Date "2022.07.24"]
[Round "3.21"]
[White "Jurcik, Marian"]
[Black "Goroshkov, Maksym"]
[Result "1/2-1/2"]
[ECO "B07"]
[WhiteElo "2409"]
[BlackElo "2240"]
[Annotator "TA"]
[PlyCount "152"]
[EventDate "2022.07.22"]
[EventType "swiss"]
[EventCountry "CZE"]
[SourceTitle "playchess.com"]
[Source "ChessBase"]
[SourceQuality "1"]
[TimeControl "40/5400+30:1800+30"]

{[%evp 14,152,59,58,75,48,56,66,70,56,77,61,174,174,151,56,115,122,230,207,176,65,48,26,368,383,439,430,422,402,1451,1445,2255,2190,2153,2106,1991,1018,925,854,865,851,846,827,820,847,829,818,1164,1129,2500,2160,1854,587,558,467,464,0,536,494,706,708,682,557,736,0,633,0,691,552,502,506,510,495,495,462,1772,2744,29958,877,871,0,0,0,0,0,0,-14,-13,-45,-24,-37,-24,-38,-14,-16,-8,-8,-8,-8,0,-8,43,39,35,43,36,22,18,12,12,12,12,12,12,18,84,84,108,8,8,8,12,12,12,0,12,12,12,12,12,12,12,0,0,0,8,0,0,0,8]} 1. e4 {[%emt 0:03:53]} d6 {[%emt 0:00:39]} 2. d4 {[%emt 0:01:18]} Nf6 {[%emt 0:00:49]} 3. Nc3 {[%emt 0:00:28]} g6 {[%emt 0:00:21]} 4. Be3 {[%emt 0:02:22]} Bg7 {[%emt 0:00:36]} 5. Qd2 {[%emt 0:00:18]} O-O {[%emt 0:04:05]} 6. O-O-O {[%emt 0:00:49]} c6 {[%emt 0:06:20]} 7. f3 {[%emt 0:04:20]} b5 {[%emt 0:01:18]} 8. Bh6 {[%emt 0:00:16]} Be6 {[%emt 0:01:59] B07: Pirc Defence: Miscellaneous Systems.} 9. h4 {[%emt 0:02:07]} Qa5 {[%emt 0:03:57]} 10. Bxg7 {[%emt 0:05:08]} Kxg7 {[%emt 0:00:24] White is slightly better.} 11. h5 {[%emt 0:00:06]} b4 $1 {[%emt 0:04:15] [#]} 12. Nb1 $146 {[%emt 0:00:13]} (12. hxg6 fxg6 13. Nb1 (13. Qh6+ Kf7 $11) 13... Nbd7 $14) ({Predecessor:} 12. hxg6 bxc3 13. Qh6+ Kg8 14. gxh7+ Kh8 15. Qxf8+ {1-0 (15) Jaskolka,T (2220)-Xie,B (2050) Chess.com INT 2021}) 12... Bxa2 {[%emt 0:02:27]} (12... Nbd7 $14) 13. hxg6 $40 {[%emt 0:11:31][%mdl 128] Black is in trouble.} fxg6 {[%emt 0:00:10]} 14. g4 {[%emt 0:01:20]} (14. Qh6+ $16 Kg8 15. e5 dxe5 16. Nh3 (16. b3 Kf7 $18)) 14... Nbd7 {[%emt 0:03:49]} (14... Kh8 $1 $14) 15. Qh6+ $16 {[%emt 0:25:48][%mdl 1024] White has strong compensation.} Kg8 {[%emt 0:00:13] [#]} (15... Kf7 $16) 16. g5 $1 $18 {[%emt 0:00:17]} Nh5 {[%emt 0:01:26]} 17. Bh3 {[%emt 0:01:00]} (17. Rxh5 $18 gxh5 18. Bh3) 17... Rfd8 $14 {[%emt 0:06:17]} 18. Bg4 {[%emt 0:13:59]} Bf7 $2 {[%emt 0:01:15][%mdl 8192]} (18... Nf8 $1 $11 {and Black has nothing to worry.} 19. Bxh5 gxh5) 19. f4 $18 {[%emt 0:04:26]} e6 {[%emt 0:01:12] Inhibits f5.} 20. f5 {[%emt 0:02:56]} exf5 {[%emt 0:01:46]} 21. exf5 {[%emt 0:00:02][%cal Rh1h5]} b3 {[%emt 0:05:40]} (21... Nf8 $142 22. f6 Be6) 22. Rxh5 {[%emt 0:03:29]} bxc2 {[%emt 0:00:02]} 23. Qxh7+ {[%emt 0:00:09]} Kf8 {[%emt 0:00:03]} 24. Qh8+ {[%emt 0:00:44]} ({And not} 24. fxg6 cxb1=Q+ 25. Kxb1 Qa2+ 26. Kc2 Qc4+ 27. Kd2 (27. Kb1 Qa2+ 28. Kc2 Qc4+ 29. Kd2 Qxd4+ 30. Kc1 Qc4+ 31. Kb1 Qe4+ 32. Kc1 Qc4+ 33. Kb1 Qe4+ 34. Kc1 Qc4+ $11) 27... Qxd4+ 28. Kc1 Qc4+ 29. Kb1 Qe4+ 30. Kc1 Qc4+ 31. Kb1 Qe4+ 32. Kc1 Qc4+ $11) 24... Bg8 {[%emt 0:00:04]} 25. Qh6+ {[%emt 0:00:44]} Ke8 {[%emt 0:00:04]} 26. Qxg6+ {[%emt 0:00:18]} Bf7 {[%emt 0:00:04]} 27. Rh8+ {[%emt 0:02:53]} Nf8 {[%emt 0:00:04] [#]} 28. Rxf8+ $1 {[%emt 0:02:18]} Kxf8 {[%emt 0:00:04]} 29. Qh6+ {[%emt 0:00:06]} Ke8 {[%emt 0:00:06]} 30. Kxc2 {[%emt 0:01:01]} Rab8 {[%emt 0:00:25]} 31. Nc3 {[%emt 0:07:03] Black must now prevent Re1+.} Bb3+ {[%emt 0:00:07]} 32. Kb1 {[%emt 0:02:56]} Bxd1 {[%emt 0:00:06]} 33. Qe6+ {[%emt 0:01:52]} (33. Nxd1 $142 {Intending Qh8+ and mate.} Rxb2+ 34. Nxb2 Qe1+ 35. Kc2 Qe4+ 36. Nd3) 33... Kf8 {[%emt 0:00:04][%cal Ob8b2]} 34. Qf6+ {[%emt 0:00:15]} Kg8 {[%emt 0:00:04][%cal Ob8b2]} 35. Qe6+ {[%emt 0:00:35]} ({Less strong is} 35. Bxd1 Qb4 36. Qe6+ Kh8 37. Qh6+ Kg8 38. Qe6+ Kh8 $18) (35. Nxd1 Qc7 36. Nf3 Rb7 37. Qe6+ Qf7 $18) 35... Kf8 $1 {[%emt 0:00:03][%cal Ob8b2] ( -> ...Rxb2+!)} 36. Nxd1 {[%emt 0:00:33]} Rb7 {[%emt 0:02:38]} (36... Qc7 $142 37. g6 Re8) 37. Qh6+ {[%emt 0:00:44]} Kg8 {[%emt 0:00:11]} 38. Qg6+ {[%emt 0:00:29]} Kf8 {[%emt 0:00:06]} 39. Qh6+ {[%emt 0:00:34]} Kg8 {[%emt 0:00:00]} 40. Qg6+ {[%emt 0:00:11]} Kf8 $1 {[%emt 0:00:19]} 41. Qf6+ {[%emt 0:02:03]} Kg8 {[%emt 0:00:00]} 42. Ne2 {[%emt 0:06:02]} Rdb8 {[%emt 0:00:20]} 43. Qe6+ {[%emt 0:01:29]} Kh8 {[%emt 0:00:16]} 44. Qh6+ {[%emt 0:03:34]} Kg8 {[%emt 0:00:02]} (44... Rh7 $142 45. Qf6+ Rg7 46. Qxd6 Qc7) 45. f6 {[%emt 0:03:36] Be6+ would kill now.} Qd5 {[%emt 0:00:55] Against Be6+} 46. Qg6+ {[%emt 0:02:10]} (46. Nf4 $142 Qe4+ 47. Ka1 Re8 48. g6 a6 49. f7+ Rxf7 50. gxf7+ Kxf7 51. Nc3 Qxd4 52. Bh5+ Kg8 53. Bxe8 Qg1+ 54. Ka2) 46... Kh8 {[%emt 0:00:03]} 47. Qh5+ $2 {[%emt 0:03:46]} ({Better is} 47. Nf4 $18 Qh1 48. Qf5) 47... Rh7 $11 {[%emt 0:00:18]} 48. Qg6 {[%emt 0:00:18] Prevents Qe4+. Really sharp!} Rg8 {[%emt 0:00:10]} 49. Qf5 {[%emt 0:04:09]} Rxg5 {[%emt 0:00:16]} 50. Qxd5 {[%emt 0:00:45]} cxd5 {[%emt 0:00:05]} 51. Be6 {[%emt 0:01:41]} Rh6 {[%emt 0:00:25]} (51... Rh2 $5 {[%cal Rh2e2]} 52. Nec3 Rg1 53. Bxd5 Rd2 $17) 52. Ndc3 {[%emt 0:01:04]} Rxf6 {[%emt 0:00:35]} 53. Bxd5 {[%emt 0:00:05]} Rf2 {[%emt 0:00:22][%cal Of2e2] And now ...Rxe2! would win.} 54. Bc4 {[%emt 0:00:42]} Rgg2 {[%emt 0:00:39]} 55. Kc2 {[%emt 0:00:48]} Rg4 {[%emt 0:01:32]} 56. Kd3 {[%emt 0:01:08]} Rh2 {[%emt 0:00:32]} 57. Nb5 {[%emt 0:01:56]} Rxe2 {[%emt 0:02:35]} 58. Kxe2 $14 {[%emt 0:00:20] Hoping for Kd3.} a6 {[%emt 0:00:03]} 59. Kf3 {[%emt 0:03:16]} Rh4 {[%emt 0:00:03]} 60. Kg3 {[%emt 0:01:22]} Re4 {[%emt 0:00:03]} 61. Bd5 {[%emt 0:00:39]} Re2 $1 {[%emt 0:00:16]} 62. Nxd6 {[%emt 0:00:19] Kf4 is the strong threat.} Rxb2 {[%emt 0:00:09]} 63. Kf4 {[%emt 0:00:39] Strongly threatening Ke5.} a5 $1 {[%emt 0:01:03]} 64. Nc4 {[%emt 0:00:18][%csl LRa5,LRb2]} Rb1 {[%emt 0:00:33]} (64... Rb3 $1 $11) 65. Ke4 $16 {[%emt 0:00:45]} ({Of course not} 65. Nxa5 $6 Rb5 $11) 65... a4 {[%emt 0:00:07] [#]} 66. Kd3 {[%emt 0:00:20]} (66. Na3 $1 $16 {[%cal Ra3b1]} Rd1 67. Bc4) 66... Rb3+ $11 {[%emt 0:00:18] The position is equal.} 67. Kc2 {[%emt 0:00:12]} Rg3 {[%emt 0:00:02]} 68. Nd2 {[%emt 0:00:49]} Kg7 {[%emt 0:00:20]} 69. Bc4 {[%emt 0:00:39]} Kf8 {[%emt 0:00:15]} 70. Ne4 {[%emt 0:00:33]} Rg4 {[%emt 0:00:38]} 71. Kd3 {[%emt 0:00:25]} Ke7 {[%emt 0:00:09]} 72. Nc3 {[%emt 0:00:21]} a3 {[%emt 0:00:14]} 73. d5 {[%emt 0:00:44]} Kd6 {[%emt 0:00:11]} 74. Ba2 {[%emt 0:00:26]} Ke5 {[%emt 0:00:08]} 75. Kc2 {[%emt 0:00:31]} Rb4 {[%emt 0:00:04]} 76. Bb3 {[%emt 0:00:31]} Rb6 {[%emt 0:00:19] Blacks defense is rewarded with a draw.  Weighted Error Value: White=0.42/Black=0.62} 1/2-1/2